bitfinex-derivatives/quotes_BTCF0:USTF0_20250501
["timestamp","ask_amount","ask_price","bid_price","bid_amount"]
[1746067879060,0.50526944,94884.0,94883.0,0.25]
[1746067879261,0.50526944,94884.0,94883.0,0.372]
[1746067880370,0.50526944,94884.0,94883.0,5.372]
[1746067885166,0.50526944,94884.0,94883.0,5.25]
[1746067885167,0.61066144,94884.0,94883.0,5.25]
[1746067888369,0.61066144,94884.0,94883.0,5.0]
[1746067888370,0.97146144,94884.0,94883.0,5.0]
[1746067888564,1.22146144,94884.0,94883.0,3.14909058]
[1746067888772,1.22146144,94884.0,94883.0,0.83933116]
[1746067888773,1.2499983,94884.0,94883.0,0.83933116]
[1746067888973,1.2499983,94884.0,94883.0,0.11193276]
[1746067889169,1.2499983,94884.0,94847.0,0.1341]
[1746067889170,0.5269847,94875.0,94847.0,0.1341]
[1746067889384,0.571642,94853.0,94852.0,0.42168476]
[1746067890069,0.571642,94853.0,94852.0,0.54368476]
[1746067890580,0.824842,94853.0,94852.0,0.54368476]
[1746067890972,0.824842,94853.0,94852.0,0.54668476]
[1746067891575,0.824842,94853.0,94852.0,0.3865814]
[1746067892370,0.824842,94853.0,94852.0,0.3895814]
[1746067893080,0.464042,94853.0,94852.0,0.3895814]
[1746067893282,0.824842,94853.0,94852.0,0.3895814]
[1746067894282,0.83259676,94853.0,94852.0,0.3895814]
[1746067895279,0.47179676,94853.0,94852.0,0.3895814]
[1746067895672,0.00779476,94853.0,94852.0,0.6004256]
[1746067896073,0.00779476,94853.0,94852.0,0.8596256]
[1746067896787,0.00775476,94853.0,94852.0,0.8596256]
[1746067896977,4e-05,94853.0,94852.0,0.8596256]
[1746067897574,0.2108378,94855.0,94854.0,0.2108398]
[1746067897783,0.2108378,94855.0,94854.0,0.4708398]
[1746067898173,0.2108378,94855.0,94854.0,0.5928398]
[1746067898672,0.2108378,94855.0,94854.0,0.5948398]
[1746067899368,0.2108778,94855.0,94854.0,0.5948398]
[1746067899575,0.2108778,94855.0,94854.0,0.8618398]
[1746067899968,0.21876639,94855.0,94854.0,0.651]
[1746067900569,0.21876639,94855.0,94854.0,0.8618398]
[1746067903073,0.21876639,94855.0,94854.0,0.651]
[1746067903478,0.34836639,94855.0,94854.0,0.651]
[1746067903888,0.34836639,94855.0,94854.0,0.8618398]
[1746067907085,0.34836639,94855.0,94854.0,0.8608398]
[1746067907287,0.34836639,94855.0,94854.0,0.8588398]
[1746067911483,0.34836639,94855.0,94854.0,0.648]
[1746067912194,0.34836639,94855.0,94854.0,0.384]
[1746067912784,0.34836639,94855.0,94854.0,0.5191]
[1746067912984,0.34836639,94855.0,94854.0,0.5181]
[1746067913185,0.34836639,94855.0,94854.0,0.5191]
[1746067913889,0.34836639,94855.0,94854.0,0.5181]
[1746067919993,0.34836639,94855.0,94854.0,0.383]
[1746067928497,0.47956639,94855.0,94854.0,0.383]
[1746067930896,0.47952639,94855.0,94854.0,0.383]
[1746067931592,0.47952639,94855.0,94854.0,0.382]
[1746067933000,0.58495039,94855.0,94854.0,0.382]
[1746067933199,0.58495039,94855.0,94854.0,0.26]
[1746067935109,0.58495039,94855.0,94854.0,0.382]
[1746067935500,0.94575039,94855.0,94854.0,0.382]
[1746067936209,0.94575039,94855.0,94854.0,0.26]
[1746067936598,0.2108709,94840.0,94814.0,0.3608]
[1746067936799,0.2108798,94836.0,94821.0,0.91065828]
[1746067936999,0.2108798,94836.0,94821.0,0.69974638]
[1746067937201,0.2108798,94836.0,94835.0,0.01105446]
[1746067937398,0.2108798,94836.0,94821.0,0.28550336]
[1746067937399,0.2109109,94822.0,94821.0,0.28550336]
[1746067937604,0.6368709,94822.0,94821.0,0.37550336]
[1746067938108,0.8939709,94822.0,94821.0,0.49750336]
[1746067938409,0.8939709,94822.0,94821.0,0.37210336]
[1746067938808,0.8939709,94822.0,94821.0,0.31449096]
[1746067939016,1.0004309,94822.0,94821.0,0.32249096]
[1746067939211,1.0014309,94822.0,94821.0,0.20849096]
[1746067939614,1.0014309,94822.0,94821.0,0.20549096]
[1746067939812,1.0004309,94822.0,94821.0,0.19749096]
[1746067940109,0.9994309,94822.0,94821.0,0.19749096]
[1746067941314,0.9994309,94822.0,94821.0,0.19449096]
[1746067941514,0.9994309,94822.0,94821.0,0.001]
[1746067941810,0.9994309,94822.0,94821.0,0.072]
[1746067943217,1.01019361,94822.0,94821.0,0.072]
[1746067945511,0.9342709,94822.0,94821.0,0.072]
[1746067945712,0.8288509,94822.0,94821.0,0.072]
[1746067945913,0.7628109,94822.0,94821.0,0.072]
[1746067946118,0.7628109,94822.0,94821.0,0.194]
[1746067946119,0.7627709,94822.0,94821.0,0.194]
[1746067946325,0.7628109,94822.0,94821.0,0.194]
[1746067946614,0.6976509,94822.0,94821.0,0.194]
[1746067946804,0.7628109,94822.0,94821.0,0.194]
[1746067948714,0.7648109,94822.0,94821.0,0.193]
[1746067949108,0.7648109,94822.0,94821.0,0.192]
[1746067949307,0.7678109,94822.0,94821.0,0.192]
[1746067950405,0.7658109,94822.0,94821.0,0.192]
[1746067950715,0.7678109,94822.0,94821.0,0.192]
[1746067951310,0.6389109,94822.0,94821.0,0.192]
[1746067951508,0.6409109,94822.0,94821.0,0.192]
[1746067951710,0.6408709,94822.0,94821.0,0.192]
[1746067951905,0.6389109,94822.0,94821.0,0.192]
[1746067952105,0.6419109,94822.0,94821.0,0.192]
[1746067952507,0.71906592,94822.0,94821.0,0.192]
[1746067952707,0.65390592,94822.0,94821.0,0.192]
[1746067953021,0.84676592,94822.0,94821.0,0.192]
[1746067953220,0.84876592,94822.0,94821.0,0.192]
[1746067953405,0.72106592,94822.0,94821.0,0.192]
[1746067953711,0.72006592,94822.0,94821.0,0.192]
[1746067954612,0.71906592,94822.0,94821.0,0.192]
[1746067954813,0.72106592,94822.0,94821.0,0.192]
[1746067955117,0.71906592,94822.0,94821.0,0.192]
[1746067955309,0.71806592,94822.0,94821.0,0.192]
[1746067955508,0.71906592,94822.0,94821.0,0.192]
[1746067955710,0.71806592,94822.0,94821.0,0.192]
[1746067955917,0.85096592,94822.0,94821.0,0.192]
[1746067956416,0.7708109,94822.0,94821.0,0.192]
[1746067958219,0.7688109,94822.0,94821.0,0.192]
[1746067958420,0.7698109,94822.0,94821.0,0.192]
[1746067958611,0.7718109,94822.0,94821.0,0.192]
[1746067959518,0.2149509,94822.0,94821.0,0.4029131]
[1746067959714,0.2149109,94822.0,94821.0,0.4029131]
[1746067959918,0.2149509,94822.0,94821.0,0.4029131]
[1746067961024,0.2129509,94822.0,94821.0,0.4029131]
[1746067961813,0.2109509,94822.0,94821.0,0.4029131]
[1746067962119,0.2119509,94822.0,94821.0,0.4029131]
[1746067964021,0.00104,94822.0,94821.0,0.4029131]
[1746067964413,0.2119509,94822.0,94821.0,0.4029131]
[1746067965622,0.2119109,94822.0,94821.0,0.4029131]
[1746067965920,0.2119509,94822.0,94821.0,0.4029131]
[1746067976728,0.2119509,94822.0,94821.0,0.192]
[1746067977329,0.2119509,94822.0,94821.0,0.4578]
[1746067979516,0.2119509,94822.0,94821.0,0.6687131]
[1746067980029,0.2119509,94822.0,94821.0,0.4578]
[1746067981719,0.4810509,94822.0,94821.0,0.4578]
[1746067982617,0.4810509,94822.0,94821.0,0.6687131]
[1746067986321,0.4810509,94822.0,94821.0,0.4578]
[1746067986526,0.4810509,94822.0,94821.0,0.3251]
[1746067990130,0.4820509,94822.0,94821.0,0.3251]
[1746067991528,0.4820509,94822.0,94821.0,0.5360131]
[1746067992931,0.4820509,94822.0,94821.0,0.3251]
[1746067996028,0.4820109,94822.0,94821.0,0.3251]
[1746067997934,0.4820109,94822.0,94821.0,0.5360131]
[1746067999034,0.1393,94822.0,94821.0,0.5360131]
[1746067999234,0.3502109,94822.0,94821.0,0.5360131]
[1746067999733,0.45774002,94822.0,94821.0,0.5360131]
[1746067999926,0.24682912,94822.0,94821.0,0.5360131]
[1746068000134,5.402e-05,94835.0,94834.0,0.2108842]
[1746068000320,5.402e-05,94835.0,94834.0,0.8416842]
[1746068000523,5.402e-05,94835.0,94834.0,0.9471322]
[1746068000722,1e-08,94835.0,94834.0,1.2042322]
[1746068000928,4.001e-05,94835.0,94834.0,1.2042322]
[1746068001235,4.001e-05,94835.0,94834.0,1.3262322]
[1746068001633,0.00204001,94835.0,94834.0,1.3262322]
[1746068001834,0.00504001,94835.0,94834.0,1.3262322]
[1746068002428,0.00204001,94835.0,94834.0,1.3262322]
[1746068002629,0.00304001,94835.0,94834.0,1.3262322]
[1746068004033,0.00304,94835.0,94834.0,1.3262322]
[1746068006231,0.00304,94835.0,94834.0,1.2207842]
[1746068006826,0.26624,94835.0,94834.0,1.2207842]
[1746068007530,0.477122,94835.0,94834.0,1.2207842]
[1746068008532,0.477122,94835.0,94834.0,1.0953842]
[1746068008734,0.477122,94835.0,94834.0,0.8845]
[1746068009124,0.477122,94835.0,94834.0,1.0953842]
[1746068009321,0.477122,94835.0,94834.0,0.9636842]
[1746068009533,0.477122,94835.0,94834.0,0.7528]
[1746068013235,0.477122,94835.0,94834.0,0.755]
[1746068014722,0.4769377,94835.0,94834.0,0.755]
[1746068014927,0.4769377,94835.0,94834.0,0.3942]
[1746068015129,0.48738876,94835.0,94834.0,0.2722]
[1746068015332,0.4769377,94835.0,94834.0,0.2722]
[1746068015927,0.48775667,94835.0,94834.0,0.2722]
[1746068016427,0.4769377,94835.0,94834.0,0.2722]
[1746068018437,0.48785185,94835.0,94834.0,0.2722]
[1746068022139,0.4769377,94835.0,94834.0,0.2722]
[1746068023038,0.4769777,94835.0,94834.0,0.2722]
[1746068023234,0.4769777,94835.0,94834.0,0.3942]
[1746068024740,0.4769377,94835.0,94834.0,0.3942]
[1746068024935,0.4769777,94835.0,94834.0,0.3942]
[1746068033139,0.8377777,94835.0,94834.0,0.3942]
[1746068033946,0.4769777,94835.0,94834.0,0.3942]
[1746068034145,0.8377777,94835.0,94834.0,0.3942]
[1746068034349,0.91826868,94835.0,94834.0,0.3942]
[1746068038443,0.8377777,94835.0,94834.0,0.3942]
[1746068040246,0.8377777,94835.0,94834.0,0.2722]
[1746068041238,0.8377777,94835.0,94834.0,0.3942]
[1746068043348,0.88135901,94835.0,94834.0,0.3942]
[1746068045445,0.25735901,94835.0,94834.0,0.3942]
[1746068045752,0.25731901,94835.0,94834.0,0.3942]
[1746068045948,0.25735901,94835.0,94834.0,0.3942]
[1746068048060,0.5745777,94835.0,94834.0,0.3942]
[1746068048557,0.7220777,94835.0,94834.0,0.3942]
[1746068048752,0.8690777,94835.0,94834.0,0.3942]
[1746068053173,0.8690777,94835.0,94834.0,0.2722]
[1746068054864,0.5082777,94835.0,94834.0,0.2722]
[1746068055173,0.2109109,94822.0,94821.0,0.1404]
[1746068055371,0.2109109,94822.0,94821.0,0.07]
[1746068055372,0.5717109,94822.0,94821.0,0.07]
[1746068055965,0.7221109,94822.0,94821.0,0.07]
[1746068056166,0.7221109,94822.0,94821.0,0.194]
[1746068056372,0.7221509,94822.0,94821.0,0.196]
[1746068056875,0.7221509,94822.0,94821.0,0.194]
[1746068057076,0.7221509,94822.0,94821.0,0.193]
[1746068057576,0.7221509,94822.0,94821.0,0.192]
[1746068060772,0.7221509,94822.0,94821.0,0.3375]
[1746068063180,0.7221509,94822.0,94821.0,0.4872]
[1746068064681,0.7221509,94822.0,94821.0,0.4882]
[1746068065992,0.7231509,94822.0,94821.0,0.4882]
[1746068066178,0.7241509,94822.0,94821.0,0.4872]
[1746068066487,0.5737509,94822.0,94821.0,0.4872]
[1746068066684,0.5717509,94822.0,94821.0,0.4872]
[1746068066877,0.5737509,94822.0,94821.0,0.4872]
[1746068067077,0.5737109,94822.0,94821.0,0.4872]
[1746068067277,0.5737509,94822.0,94821.0,0.4872]
[1746068068583,0.2129509,94822.0,94821.0,0.4872]
[1746068069689,0.2129109,94822.0,94821.0,0.4872]
[1746068069880,0.2129509,94822.0,94821.0,0.4872]
[1746068071794,0.2129109,94822.0,94821.0,0.4872]
[1746068072490,0.2129509,94822.0,94821.0,0.4872]
[1746068074378,0.3592509,94822.0,94821.0,0.4872]
[1746068074582,0.2129509,94822.0,94821.0,0.4872]
[1746068078192,0.2129509,94822.0,94821.0,0.6981131]
[1746068078392,0.2129509,94822.0,94821.0,0.4872]
[1746068080985,0.2129509,94822.0,94821.0,0.6981131]
[1746068081603,0.2129509,94822.0,94821.0,0.4872]
[1746068081982,0.2129509,94822.0,94821.0,0.6981131]
[1746068082393,0.2129509,94822.0,94821.0,0.4872]
[1746068082594,0.2129109,94822.0,94821.0,0.4872]
[1746068082897,0.29354356,94822.0,94821.0,0.4872]
[1746068083087,0.43954356,94822.0,94821.0,0.4872]
[1746068083286,0.29354356,94822.0,94821.0,0.6981131]
[1746068087086,0.29350356,94822.0,94821.0,0.6981131]
[1746068087498,0.29354356,94822.0,94821.0,0.6981131]
[1746068089201,0.29354356,94822.0,94821.0,1.0589131]
[1746068090803,0.0527217,94833.0,94828.0,0.0527239]
[1746068090990,0.31839807,94831.0,94830.0,0.5716931]
[1746068091189,0.210892,94831.0,94830.0,0.8316931]
[1746068091395,0.210932,94831.0,94830.0,1.1299931]
[1746068091796,0.213932,94831.0,94830.0,1.1299931]
[1746068092196,0.213932,94831.0,94830.0,1.2519931]
[1746068092397,0.211932,94831.0,94830.0,1.2519931]
[1746068093196,0.214932,94831.0,94830.0,1.2519931]
[1746068093790,0.211932,94831.0,94830.0,1.2519931]
[1746068093987,0.212932,94831.0,94830.0,1.2519931]
[1746068099503,0.354232,94831.0,94830.0,1.2519931]
[1746068104403,0.14334,94831.0,94830.0,1.2519931]
[1746068104605,0.05435288,94843.0,94842.0,0.2108664]
[1746068104805,0.05435288,94843.0,94842.0,0.4408664]
[1746068104806,0.26521968,94843.0,94842.0,0.4408664]
[1746068105201,0.26516567,94843.0,94842.0,0.5628664]
[1746068105508,0.26520567,94843.0,94842.0,0.5628664]
[1746068105709,0.26516567,94843.0,94842.0,0.5628664]
[1746068106002,0.41430567,94843.0,94842.0,0.7144664]
[1746068106209,0.41830567,94843.0,94842.0,0.7144664]
[1746068106606,0.2635553,94852.0,94851.0,0.2108442]
[1746068106793,0.2635553,94852.0,94851.0,0.8016442]
[1746068106999,0.4076553,94852.0,94851.0,0.9458442]
[1746068107201,0.4076553,94852.0,94851.0,1.0678442]
[1746068107496,0.0079426,94855.0,94852.0,0.2108442]
[1746068107803,0.13440878,94853.0,94852.0,0.6350442]
[1746068108004,0.16087162,94861.0,94857.0,0.2108331]
[1746068108005,0.3620353,94858.0,94857.0,0.2108331]
[1746068108198,0.3620353,94858.0,94857.0,0.4408331]
[1746068108199,0.1512,94858.0,94857.0,0.4408331]
[1746068108394,0.0527046,94864.0,94863.0,0.2108153]
[1746068108594,0.0527046,94864.0,94863.0,0.8116153]
[1746068108899,0.0527046,94864.0,94863.0,1.0991153]
[1746068109101,0.06046135,94864.0,94863.0,1.2211153]
[1746068109409,0.27128405,94864.0,94863.0,1.2211153]
[1746068109603,0.56428405,94864.0,94863.0,1.2211153]
[1746068110106,0.56928405,94864.0,94863.0,1.2211153]
[1746068110614,0.155,94864.0,94863.0,1.2211153]
[1746068111004,0.155,94864.0,94863.0,1.2221153]
[1746068111598,0.155,94864.0,94863.0,1.6379153]
[1746068111908,0.37175189,94865.0,94864.0,0.2108175]
[1746068112107,0.37175189,94865.0,94864.0,0.7419175]
[1746068112308,0.16093659,94865.0,94864.0,0.7419175]
[1746068113008,0.37175189,94865.0,94864.0,0.7419175]
[1746068113213,0.30083659,94865.0,94864.0,0.7429175]
[1746068113599,0.16093659,94865.0,94864.0,0.7429175]
[1746068113911,0.1409,94866.0,94865.0,0.2108153]
[1746068114101,0.1409,94866.0,94865.0,0.6325153]
[1746068115207,0.1419,94866.0,94865.0,0.7545153]
[1746068116213,0.0015,94870.0,94869.0,0.2108064]
[1746068116411,0.0015,94870.0,94869.0,0.4908064]
[1746068117215,0.0017468,94870.0,94869.0,0.6128064]
[1746068118104,0.0027468,94870.0,94869.0,0.6128064]
[1746068118713,0.0037468,94870.0,94869.0,0.6128064]
[1746068120114,0.1510468,94870.0,94869.0,0.6128064]
[1746068122716,0.1510468,94870.0,94869.0,0.7612064]
[1746068126911,0.361851,94870.0,94869.0,0.7612064]
[1746068127313,0.361851,94870.0,94869.0,0.6128064]
[1746068131417,0.361851,94870.0,94869.0,0.7614064]
[1746068151635,0.0037468,94870.0,94869.0,0.7614064]
[1746068151834,0.0037868,94870.0,94869.0,0.9159064]
[1746068152035,0.214591,94870.0,94869.0,0.9159064]
[1746068160136,0.214591,94870.0,94869.0,0.5506]
[1746068160441,0.214591,94870.0,94869.0,0.9062064]
[1746068160743,0.358191,94870.0,94869.0,0.9062064]
[1746068163742,0.358191,94870.0,94869.0,0.7614064]
[1746068167846,0.358191,94870.0,94869.0,0.5506]
[1746068168036,0.358191,94870.0,94869.0,0.402]
[1746068168244,0.2108264,94860.0,94859.0,0.16119771]
[1746068168441,0.2108398,94854.0,94853.0,0.21354638]
[1746068168633,0.2763198,94854.0,94853.0,0.05974638]
[1746068168837,0.2108598,94845.0,94844.0,0.26625464]
[1746068169139,0.6371398,94845.0,94844.0,0.65711664]
[1746068169646,0.6371398,94845.0,94844.0,0.44625464]
[1746068169948,0.9375398,94845.0,94844.0,0.44625464]
[1746068170339,0.9375398,94845.0,94844.0,0.44825464]
[1746068171740,0.9375398,94845.0,94844.0,0.44925464]
[1746068172349,0.8720598,94845.0,94844.0,0.44925464]
[1746068172545,0.9375398,94845.0,94844.0,0.44925464]
[1746068172851,0.9375398,94845.0,94844.0,0.183]
[1746068172852,0.9375798,94845.0,94844.0,0.183]
[1746068173150,0.9375798,94845.0,94844.0,0.305]
[1746068180543,0.9375798,94845.0,94844.0,0.515862]
[1746068181253,0.9375798,94845.0,94844.0,0.670662]
[1746068182853,0.9374998,94845.0,94844.0,0.670662]
[1746068185455,0.8720998,94845.0,94844.0,0.670662]
[1746068185653,0.9374998,94845.0,94844.0,0.670662]
[1746068185858,0.2108234,94863.0,94844.0,0.8206]
[1746068186155,0.14547291,94858.0,94857.0,0.2108331]
[1746068186357,0.1454,94858.0,94857.0,0.8821331]
[1746068186555,0.0527026,94868.0,94866.0,0.2108125]
[1746068186752,0.3402026,94868.0,94867.0,0.1437]
[1746068187052,0.3402026,94868.0,94867.0,0.3937]
[1746068187255,0.3402026,94868.0,94867.0,0.5157]
[1746068187553,0.3402426,94868.0,94867.0,0.5157]
[1746068187752,0.5550513,94868.0,94867.0,0.7265109]
[1746068188950,0.5580513,94868.0,94867.0,0.7265109]
[1746068191660,0.5580513,94868.0,94867.0,0.5157]
[1746068194268,0.5053487,94868.0,94867.0,0.7265109]
[1746068194558,0.3632487,94868.0,94867.0,0.7265109]
[1746068195152,0.3632487,94868.0,94867.0,0.8823109]
[1746068201054,0.5169487,94868.0,94867.0,0.8823109]
[1746068218380,0.5169087,94868.0,94867.0,0.8823109]
[1746068220984,0.007,94868.0,94867.0,0.8823109]
[1746068221175,0.007,94868.0,94867.0,1.2431109]
[1746068221376,0.00704,94868.0,94867.0,1.2431109]
[1746068222572,0.2178487,94868.0,94867.0,1.2431109]
[1746068225992,0.2178487,94868.0,94867.0,0.8823109]
[1746068228893,0.3664487,94868.0,94867.0,0.8823109]
[1746068231094,0.3594487,94868.0,94867.0,0.8823109]
[1746068231286,0.3604487,94868.0,94867.0,0.8823109]
[1746068234191,0.3604487,94868.0,94867.0,0.5278]
[1746068234394,0.5119487,94868.0,94867.0,0.372]
[1746068234984,0.6635487,94868.0,94867.0,0.372]
[1746068235898,0.5120487,94868.0,94867.0,0.372]
[1746068238497,0.59261526,94868.0,94867.0,0.5275]
[1746068239791,0.59261526,94868.0,94867.0,0.7383109]
[1746068239992,0.59257526,94868.0,94867.0,0.8953109]
[1746068240193,0.29237526,94868.0,94867.0,0.8953109]
[1746068240797,0.29241526,94868.0,94867.0,0.8953109]
[1746068240998,0.29237526,94868.0,94867.0,0.8953109]
[1746068241197,0.29241526,94868.0,94867.0,0.8953109]
[1746068242798,0.2118487,94868.0,94867.0,0.8953109]
[1746068243291,0.3651487,94868.0,94867.0,0.8953109]
[1746068245101,0.3651487,94868.0,94867.0,0.7383109]
[1746068245304,0.3651487,94868.0,94867.0,0.5275]
[1746068245690,0.3651487,94868.0,94866.0,0.04216]
[1746068245691,0.5270339,94866.0,94838.0,0.06748545]
[1746068245891,0.2108909,94831.0,94830.0,0.12007295]
[1746068246103,0.6384909,94831.0,94830.0,0.08635935]
[1746068246306,0.2109087,94823.0,94810.0,0.1466]
[1746068246601,0.5717087,94823.0,94810.0,0.1466]
[1746068246905,0.6771687,94823.0,94810.0,0.1466]
[1746068247899,0.6771687,94823.0,94822.0,0.32346816]
[1746068248805,0.84197338,94823.0,94822.0,0.32346816]
[1746068249107,0.73651338,94823.0,94822.0,0.32346816]
[1746068249304,0.73651338,94823.0,94822.0,0.32746816]
[1746068251710,0.57951338,94823.0,94822.0,0.56837906]
[1746068251906,0.57955338,94823.0,94822.0,0.56837906]
[1746068252113,0.57955338,94823.0,94822.0,0.2489109]
[1746068252612,0.57955338,94823.0,94822.0,0.2459109]
[1746068252801,0.57955338,94823.0,94822.0,0.2439109]
[1746068253109,0.57955338,94823.0,94822.0,0.3659109]
[1746068253414,0.57955338,94823.0,94822.0,0.3709109]
[1746068253915,0.57955338,94823.0,94822.0,0.3669109]
[1746068254108,0.57955338,94823.0,94822.0,0.3719109]
[1746068255612,0.57955338,94823.0,94822.0,0.161]
[1746068256116,0.58055338,94823.0,94822.0,0.158]
[1746068256305,0.58055338,94823.0,94822.0,0.163]
[1746068256505,0.73425338,94823.0,94822.0,0.157]
[1746068256711,0.73425338,94823.0,94822.0,0.161]
[1746068257106,0.73425338,94823.0,94822.0,0.157]
[1746068257412,0.73421338,94823.0,94822.0,0.159]
[1746068257610,0.73425338,94823.0,94822.0,0.155]
[1746068257811,0.73425338,94823.0,94822.0,0.158]
[1746068259218,0.73425338,94823.0,94822.0,0.152]
[1746068259407,0.73425338,94823.0,94822.0,0.159]
[1746068259915,0.73425338,94823.0,94822.0,0.158]
[1746068261608,0.73425338,94823.0,94822.0,0.3689109]
[1746068261809,0.73425338,94823.0,94822.0,0.158]
[1746068262718,0.73425338,94823.0,94822.0,0.4519]
[1746068263612,0.57955338,94823.0,94822.0,0.6628109]
[1746068263917,0.57951338,94823.0,94822.0,0.6628109]
[1746068264215,0.57955338,94823.0,94822.0,0.6628109]
[1746068265422,0.36860468,94823.0,94822.0,0.6628109]
[1746068265610,0.36864468,94823.0,94822.0,0.6628109]
[1746068269714,0.08038058,94831.0,94830.0,0.2108931]
[1746068269924,0.08038058,94831.0,94830.0,0.4908931]
[1746068270312,0.08038058,94831.0,94830.0,0.6128931]
[1746068270516,0.08038058,94831.0,94830.0,0.9021931]
[1746068270724,0.08042058,94831.0,94830.0,0.9021931]
[1746068272519,0.29131148,94831.0,94830.0,0.9031931]
[1746068272822,0.29131148,94831.0,94830.0,0.9051931]
[1746068272823,0.2109309,94831.0,94830.0,0.9051931]
[1746068273515,0.21896142,94831.0,94830.0,0.9051931]
[1746068275317,0.0527128,94849.0,94830.0,0.6943]
[1746068275524,0.08838895,94843.0,94842.0,0.2108664]
[1746068275712,0.08838895,94843.0,94842.0,0.4908664]
[1746068276233,0.08838895,94843.0,94842.0,0.6128664]
[1746068276526,0.08838895,94843.0,94842.0,0.9131664]
[1746068276923,0.08838895,94843.0,94842.0,0.9141664]
[1746068277321,0.08838895,94843.0,94842.0,0.9151664]
[1746068277924,0.00800837,94843.0,94842.0,0.9151664]
[1746068278228,0.31836746,94844.0,94843.0,0.2108642]
[1746068278423,0.31836746,94844.0,94843.0,0.4608642]
[1746068278624,0.31836746,94844.0,94843.0,0.7570642]
[1746068279123,0.31836746,94844.0,94843.0,0.8790642]
[1746068279528,0.32634829,94844.0,94843.0,0.8790642]
[1746068280819,0.68714829,94844.0,94843.0,0.5236]
[1746068281020,0.68714829,94844.0,94843.0,0.372]
[1746068281513,0.73674353,94844.0,94843.0,0.372]
[1746068282215,0.73674353,94844.0,94843.0,0.25]
[1746068284729,0.73674353,94844.0,94843.0,0.4608642]
[1746068284928,0.73674353,94844.0,94843.0,0.25]
[1746068285520,0.88954353,94844.0,94843.0,0.25]
[1746068285823,0.88958353,94844.0,94843.0,0.25]
[1746068287025,1.24501953,94844.0,94843.0,0.2061702]
[1746068287229,0.2636435,94822.0,94821.0,0.2109118]
[1746068287430,0.2109154,94820.0,94819.0,0.1513]
[1746068287617,0.2109154,94820.0,94819.0,0.4013]
[1746068288030,0.2109154,94820.0,94819.0,0.6122176]
[1746068288328,0.3547154,94820.0,94819.0,0.8927176]
[1746068288827,0.3547154,94820.0,94819.0,0.8957176]
[1746068289031,0.5717122,94822.0,94821.0,0.2109131]
[1746068289327,0.5717122,94822.0,94821.0,0.4909131]
[1746068289519,0.7279122,94822.0,94821.0,0.4909131]
[1746068290224,0.3608,94822.0,94821.0,0.6159131]
[1746068290522,5.401e-05,94830.0,94821.0,0.6159131]
[1746068290523,0.08055406,94830.0,94829.0,0.2108953]
[1746068290723,0.08055406,94830.0,94829.0,0.4508953]
[1746068291227,0.08055406,94830.0,94829.0,0.5728953]
[1746068291429,0.08055406,94830.0,94829.0,0.8861953]
[1746068291617,0.29144716,94830.0,94829.0,0.8861953]
[1746068292523,0.29144716,94830.0,94829.0,0.8881953]
[1746068292726,0.08055406,94830.0,94829.0,0.8881953]
[1746068293018,0.08059406,94830.0,94829.0,0.8881953]
[1746068293227,0.08059406,94830.0,94829.0,0.8901953]
[1746068293431,0.08055406,94830.0,94829.0,0.8891953]
[1746068293626,0.08059406,94830.0,94829.0,0.8921953]
[1746068298722,4e-05,94830.0,94829.0,0.8921953]
[1746068298923,0.10745943,94840.0,94837.0,0.0527189]
[1746068299130,0.10745943,94840.0,94839.0,0.5716731]
[1746068299329,0.10740542,94840.0,94839.0,0.8116731]
[1746068299634,0.10744542,94840.0,94839.0,1.1128731]
[1746068300230,0.10744542,94840.0,94839.0,1.2348731]
[1746068300834,0.10744542,94840.0,94839.0,1.2358731]
[1746068301733,0.10744542,94840.0,94839.0,1.2368731]
[1746068302032,4e-05,94840.0,94839.0,1.2368731]
[1746068306931,0.15294,94840.0,94839.0,1.2368731]
[1746068307730,0.15294,94840.0,94839.0,0.8760731]
[1746068319253,0.3638109,94840.0,94839.0,0.8760731]
[1746068319457,0.7246109,94840.0,94839.0,0.364]
[1746068320253,0.7246109,94840.0,94839.0,0.4528731]
[1746068321858,0.51374,94840.0,94839.0,0.4528731]
[1746068322156,0.15294,94840.0,94839.0,0.5748731]
[1746068322555,0.3638109,94840.0,94839.0,0.8772731]
[1746068324559,4e-05,94840.0,94839.0,0.8772731]
[1746068324962,0.1489,94841.0,94840.0,0.2108709]
[1746068325149,0.1489,94841.0,94840.0,0.5828709]
[1746068325349,0.1489,94841.0,94840.0,0.8852709]
[1746068326457,0.1489,94841.0,94840.0,0.8872709]
[1746068327556,0.00798083,94844.0,94843.0,0.2108642]
[1746068327750,5.401e-05,94849.0,94847.0,0.2108553]
[1746068327751,0.1485,94848.0,94847.0,0.2108553]
[1746068327959,0.1485,94848.0,94847.0,0.4408553]
[1746068328160,0.14854,94848.0,94847.0,0.5628553]
[1746068328375,0.14854,94848.0,94847.0,0.8638553]
[1746068328576,5.401e-05,94858.0,94854.0,0.0527098]
[1746068328890,0.1558,94857.0,94855.0,0.2905]
[1746068329076,0.1558,94857.0,94855.0,0.5505]
[1746068329278,0.1558,94857.0,94855.0,0.6725]
[1746068329479,0.1558,94857.0,94856.0,0.2108353]
[1746068329681,0.1558,94857.0,94856.0,0.4508353]
[1746068329982,0.1558,94857.0,94856.0,0.7413353]
[1746068330184,0.1558,94857.0,94856.0,0.8633353]
[1746068330383,0.1578,94857.0,94856.0,0.8633353]
[1746068330590,0.15784,94857.0,94856.0,0.8633353]
[1746068331089,0.16084,94857.0,94856.0,0.8633353]
[1746068331490,0.1608,94857.0,94856.0,0.8633353]
[1746068331678,0.16894497,94857.0,94856.0,0.8633353]
[1746068332683,0.16694497,94857.0,94856.0,0.8633353]
[1746068332986,0.16994497,94857.0,94856.0,0.8633353]
[1746068338688,0.31004497,94857.0,94856.0,0.8633353]
[1746068339684,0.31004497,94857.0,94856.0,0.5728353]
[1746068340186,0.31004497,94857.0,94856.0,0.4508353]
[1746068340776,0.52087807,94857.0,94856.0,0.5975353]
[1746068342489,0.52087807,94857.0,94856.0,0.3867]
[1746068342878,0.52087807,94857.0,94856.0,0.5975353]
[1746068342879,0.38077807,94857.0,94856.0,0.5975353]
[1746068343082,0.16994497,94857.0,94856.0,1.0184353]
[1746068343280,0.38077807,94857.0,94856.0,1.0184353]
[1746068343886,0.38073807,94857.0,94856.0,1.0184353]
[1746068344686,0.38077807,94857.0,94856.0,1.0184353]
[1746068345485,0.01414497,94857.0,94856.0,1.0184353]
[1746068345881,0.01410497,94857.0,94856.0,1.0184353]
[1746068346188,0.01414497,94857.0,94856.0,1.0184353]
[1746068346490,0.01114497,94857.0,94856.0,1.0184353]